fUST/lending_fUST_20250929
["ID","MTS","AMOUNT","RATE_DAILY","PERIOD"]
[388408685,1759158654984,-164.455933,0.00024424,7]
[388408687,1759158654993,-480.0,0.00024424,2]
[388408689,1759158655003,-151.0,0.00024424,7]
[388408691,1759158655013,-151.0,0.00024424,7]
[388408693,1759158655023,-241.6,0.00024424,7]
[388408695,1759158655032,-209.28187,0.00024424,7]
[388408697,1759158655042,-209.28187,0.00024424,7]
[388408699,1759158655051,-209.28187,0.00024424,7]
[388408701,1759158655060,-209.28187,0.00024424,7]
[388408703,1759158655070,-659.09,0.00024434,2]
[388408705,1759158655079,-480.0,0.00024434,2]
[388408706,1759158655088,-706.46,0.00024434,2]
[388408708,1759158655097,-480.0,0.00024434,2]
[388408710,1759158655107,-480.0,0.00024434,2]
[388408712,1759158655118,-708.84,0.00024434,2]
[388408714,1759158655127,-500.0,0.00024434,2]
[388408716,1759158655136,-480.0,0.00024434,2]
[388408718,1759158655146,-486.91509141,0.00024434,2]
[388408720,1759158655155,-480.0,0.00024434,2]
[388408722,1759158655166,-480.0,0.00024434,2]
[388408724,1759158655175,-574.58,0.00024434,2]
[388408726,1759158655184,-754.94,0.00024434,2]
[388408728,1759158655193,-480.0,0.00024434,2]
[388408730,1759158655202,-480.0,0.00024434,2]
[388408732,1759158655212,-480.0,0.00024434,2]
[388408734,1759158655221,-579.4,0.00024434,2]
[388408736,1759158655231,-1207.44,0.00024434,2]
[388408737,1759158655240,-673.47,0.00024434,2]
[388408739,1759158655249,-480.0,0.00024434,2]
[388408741,1759158655258,-480.0,0.00024434,2]
[388408743,1759158655267,-480.0,0.00024434,2]
[388408745,1759158655276,-772.48,0.00024434,2]
[388408747,1759158655286,-480.0,0.00024435,2]
[388408749,1759158655295,-480.0,0.00024435,2]
[388408750,1759158655306,-160.0,0.00024435,7]
[388408752,1759158655315,-160.0,0.00024435,7]
[388408754,1759158655325,-380.834946,0.00024435,7]
[388408756,1759158655334,-380.834946,0.00024435,7]
[388408758,1759158655344,-380.834946,0.00024435,7]
[388408760,1759158655354,-151.0,0.00024435,7]
[388408762,1759158655363,-380.834946,0.00024435,7]
[388408763,1759158655372,-202.19174,0.00024435,7]
[388408765,1759158655382,-151.0,0.00024435,7]
[388408767,1759158655391,-246.798745,0.00024435,7]
[388408769,1759158655400,-151.0,0.00024435,7]
[388408771,1759158655410,-151.0,0.00024435,7]
[388408773,1759158655422,-151.0,0.00024435,7]
[388408775,1759158655431,-330.268901,0.00024435,7]
[388408777,1759158655441,-151.0,0.00024435,7]
[388408779,1759158655450,-330.268901,0.00024435,7]
[388408781,1759158655460,-151.0,0.00024435,7]
[388408783,1759158655470,-330.268901,0.00024435,7]
[388408785,1759158655480,-151.0,0.00024435,7]
[388408786,1759158655490,-330.268901,0.00024435,7]
[388408788,1759158655500,-151.0,0.00024435,7]
[388408790,1759158655510,-151.0,0.00024435,7]
[388408792,1759158655519,-173.077294,0.00024435,7]
[388408794,1759158655529,-173.077294,0.00024435,7]
[388408796,1759158655538,-173.077294,0.00024435,7]
[388408798,1759158655548,-151.0,0.00024435,7]
[388408800,1759158655557,-173.077294,0.00024435,7]
[388408802,1759158655567,-151.0,0.00024435,7]
[388408804,1759158655576,-151.0,0.00024435,7]
[388408806,1759158655585,-151.0,0.00024435,7]
[388408808,1759158655594,-4717.390683,0.00024435,7]
[388408810,1759158655604,-4717.390683,0.00024435,7]
[388408811,1759158655615,-4717.390683,0.00024435,7]
[388408813,1759158655624,-4717.390683,0.00024435,7]
[388408815,1759158655634,-174.950494,0.00024435,7]
[388408817,1759158655644,-174.950494,0.00024435,7]
[388408819,1759158655653,-174.950494,0.00024435,7]
[388408821,1759158655662,-174.950494,0.00024435,7]
[388408823,1759158655673,-672.460402,0.00024435,7]
[388408825,1759158655683,-672.460402,0.00024435,7]
[388408827,1759158655691,-672.460402,0.00024435,7]
[388408828,1759158655700,-152.046936,0.00024435,7]
[388408830,1759158655710,-195.121314,0.00024435,7]
[388408832,1759158655719,-151.0,0.00024435,7]
[388408833,1759158655728,-151.0,0.00024435,7]
[388408835,1759158655737,-166.692518,0.00024435,7]
[388408837,1759158655747,-151.0,0.00024435,2]
[388408839,1759158655756,-151.0,0.00024435,7]
[388408841,1759158655765,-151.0,0.00024435,7]
[388408843,1759158655775,-160.157518,0.00024435,7]
[388408845,1759158655789,-160.157518,0.00024435,7]
[388408847,1759158655798,-151.0,0.00024435,7]
[388408849,1759158655808,-151.0,0.00024435,7]
[388408851,1759158655818,-160.157518,0.00024435,7]
[388408853,1759158655829,-151.0,0.00024435,7]
[388408854,1759158655839,-151.0,0.00024435,7]
[388408856,1759158655849,-151.0,0.00024435,7]
[388408858,1759158655859,-151.0,0.00024435,7]
[388408860,1759158655868,-160.157518,0.00024435,7]
[388408862,1759158655878,-151.0,0.00024435,7]
[388408864,1759158655888,-151.0,0.00024435,7]
[388408866,1759158655898,-151.0,0.00024435,7]
[388408868,1759158655907,-151.0,0.00024435,7]
[388408870,1759158655919,-35015.80468784,0.00024435,2]
[388408872,1759158655935,-66689.56357471,0.00024435,2]
[388408874,1759158655944,-180.0,0.00024447,2]
[388408876,1759158655954,-500.0,0.00024473,2]
[388408878,1759158655963,-500.0,0.00024473,2]
[388408880,1759158655971,-500.0,0.00024473,2]
[388408882,1759158655980,-500.0,0.00024473,2]
[388408883,1759158655989,-500.0,0.00024473,2]
[388408885,1759158655997,-176.47569828,0.00024473,2]
[388408887,1759158656006,-500.0,0.00024473,2]
[388408889,1759158656016,-500.0,0.00024473,2]
[388408891,1759158656025,-500.0,0.00024473,2]
[388408893,1759158656036,-500.0,0.00024473,2]
[388408895,1759158656045,-500.0,0.00024473,2]
[388408897,1759158656054,-500.0,0.00024473,2]
[388408899,1759158656063,-500.0,0.00024473,2]
[388408901,1759158656072,-419.37747581,0.00024473,2]
[388408902,1759158656082,-500.0,0.00024473,2]
[388408904,1759158656091,-500.0,0.00024473,2]
[388408906,1759158656101,-500.0,0.00024473,2]
[388408908,1759158656110,-500.0,0.00024473,2]
[388408910,1759158656120,-501.45137746,0.00024473,2]
[388408912,1759158656129,-500.0,0.00024473,2]
[388408914,1759158656138,-500.0,0.00024473,2]
[388408916,1759158656147,-500.0,0.00024473,2]
[388408918,1759158656157,-500.0,0.00024473,2]
[388408919,1759158656168,-500.0,0.00024473,2]
[388408921,1759158656177,-400.0,0.00024473,2]
[388408923,1759158656186,-500.0,0.00024473,2]
[388408925,1759158656195,-500.0,0.00024473,2]
[388408927,1759158656204,-500.0,0.00024473,2]
[388408929,1759158656213,-500.0,0.00024473,2]
[388408931,1759158656222,-500.0,0.00024473,2]
[388408933,1759158656232,-500.0,0.00024473,2]
[388408934,1759158656241,-500.0,0.00024473,2]
[388408936,1759158656252,-500.0,0.00024473,2]
[388408938,1759158656261,-500.0,0.00024473,2]
[388408940,1759158656271,-500.0,0.00024473,2]
[388408942,1759158656280,-500.0,0.00024473,2]
[388408944,1759158656289,-500.0,0.00024473,2]
[388408946,1759158656298,-500.0,0.00024473,2]
[388408948,1759158656307,-500.0,0.00024473,2]
[388408950,1759158656317,-500.0,0.00024473,2]
[388408952,1759158656327,-500.0,0.00024473,2]
[388408954,1759158656336,-500.0,0.00024473,2]
[388408955,1759158656345,-501.3153182,0.00024473,2]
[388408957,1759158656355,-500.0,0.00024473,2]
[388408959,1759158656364,-500.0,0.00024473,2]
[388408961,1759158656373,-500.0,0.00024473,2]
[388408963,1759158656382,-500.0,0.00024473,2]
[388408965,1759158656392,-585.41442867,0.00024473,2]
[388408967,1759158656402,-626.96163022,0.00024473,2]
[388408969,1759158656411,-500.0,0.00024473,2]
[388408970,1759158656422,-500.0,0.00024473,2]
[388408972,1759158656431,-500.0,0.00024473,2]
[388408974,1759158656440,-500.0,0.00024473,2]
[388408976,1759158656450,-500.0,0.00024473,2]
[388408978,1759158656462,-449.17884857,0.00024473,2]
[388408980,1759158656471,-500.0,0.00024473,2]
[388408982,1759158656480,-171.27725486,0.00024473,2]
[388408984,1759158656490,-500.0,0.00024473,2]
[388408986,1759158656499,-500.0,0.00024473,2]
[388408988,1759158656509,-500.0,0.00024473,2]
[388408990,1759158656518,-500.0,0.00024473,2]
[388408992,1759158656527,-500.0,0.00024473,2]
[388408993,1759158656537,-500.0,0.00024473,2]
[388408995,1759158656546,-285.867645,0.00024473,7]
[388408997,1759158656555,-285.867645,0.00024473,7]
[388408999,1759158656565,-285.867645,0.00024473,7]
[388409001,1759158656575,-285.867645,0.00024473,7]
[388409003,1759158656586,-151.0,0.00024473,7]
[388409005,1759158656595,-2960.167961,0.00024473,7]
[388409007,1759158656604,-2960.167961,0.00024473,7]
[388409009,1759158656613,-2960.167961,0.00024473,7]
[388409010,1759158656622,-2960.167961,0.00024473,7]
[388409012,1759158656631,-479.654957,0.00024473,7]
[388409014,1759158656641,-479.654957,0.00024473,7]
[388409016,1759158656651,-479.654957,0.00024473,7]
[388409018,1759158656661,-479.654957,0.00024473,7]
[388409020,1759158656674,-151.0,0.00024473,7]
[388409022,1759158656684,-151.0,0.00024473,7]
[388409024,1759158656694,-217.695783,0.00024473,7]
[388409026,1759158656704,-151.0,0.00024473,7]
[388409028,1759158656713,-151.0,0.00024473,7]
[388409030,1759158656723,-151.0,0.00024473,7]
[388409032,1759158656733,-151.0,0.00024473,7]
[388409034,1759158656743,-151.0,0.00024473,7]
[388409036,1759158656753,-151.0,0.00024473,7]
[388409038,1759158656762,-151.0,0.00024473,7]
[388409040,1759158656771,-151.0,0.00024473,7]
[388409041,1759158656781,-151.0,0.00024473,7]
[388409043,1759158656795,-189.539216,0.00024473,7]
[388409045,1759158656804,-189.539216,0.00024473,7]
[388409046,1759158656813,-151.0,0.00024473,7]
[388409048,1759158656823,-189.539216,0.00024473,7]
[388409049,1759158656833,-151.0,0.00024473,7]
[388409051,1759158656843,-189.539216,0.00024473,7]
[388409053,1759158656852,-151.0,0.00024473,7]
[388409055,1759158656865,-158.718065,0.00024473,7]
[388409057,1759158656874,-158.718065,0.00024473,7]
[388409059,1759158656883,-158.718065,0.00024473,7]
[388409061,1759158656892,-158.718065,0.00024473,7]
[388409063,1759158656903,-151.0,0.00024473,7]
[388409064,1759158656912,-151.0,0.00024473,7]
[388409066,1759158656925,-769.635928,0.00024473,7]
[388409068,1759158656934,-151.0,0.00024473,7]
[388409070,1759158656943,-151.576217,0.00024473,7]
[388409072,1759158656953,-769.635928,0.00024473,7]
[388409074,1759158656962,-769.635928,0.00024473,7]
[388409076,1759158656971,-769.635928,0.00024473,7]
[388409078,1759158656980,-151.0,0.00024473,7]
[388409079,1759158656989,-151.0,0.00024473,7]
[388409081,1759158656999,-151.0,0.00024473,7]
[388409083,1759158657008,-151.0,0.00024473,7]
[388409085,1759158657017,-151.0,0.00024473,7]
[388409086,1759158657027,-189.975523,0.00024473,7]
[388409088,1759158657036,-151.0,0.00024473,7]
[388409090,1759158657045,-151.0,0.00024473,7]
[388409092,1759158657055,-608.13852158,0.00024477,2]
[388409094,1759158657065,-702.05891974,0.00024486,5]
[388409096,1759158657316,5000.0,0.000234,2]
[388409108,1759158657826,-297.94108026,0.00024486,5]
[388409110,1759158657836,-151.0,0.000245,7]
[388409111,1759158657844,-151.0,0.000245,9]
[388409113,1759158657854,-160.0,0.0002451,6]
[388409115,1759158657864,-480.0,0.00024535,2]
[388409117,1759158657873,-480.0,0.00024535,2]
[388409119,1759158657883,-480.0,0.00024535,2]
[388409121,1759158657893,-480.0,0.00024535,2]
[388409123,1759158657902,-633.65,0.00024535,2]
[388409125,1759158657911,-222.604252,0.00024535,7]
[388409127,1759158657922,-222.604252,0.00024535,7]
[388409128,1759158657931,-222.604252,0.00024535,7]
[388409130,1759158657940,-222.604252,0.00024535,7]
[388409132,1759158657949,-151.0,0.00024535,7]
[388409134,1759158657959,-151.0,0.00024535,7]
[388409136,1759158657968,-151.0,0.00024535,7]
[388409138,1759158657977,-151.0,0.00024535,7]
[388409140,1759158657986,-151.0,0.00024535,7]
[388409142,1759158657995,-153.369212,0.00024535,7]
[388409143,1759158658004,-151.0,0.00024535,7]
[388409145,1759158658013,-155.234866,0.00024535,7]
[388409147,1759158658022,-151.0,0.00024535,7]
[388409149,1759158658031,-151.0,0.00024535,7]
[388409151,1759158658039,-151.0,0.00024535,7]
[388409153,1759158658048,-164.838462,0.00024535,7]
[388409154,1759158658057,-1257.337437,0.00024535,7]
[388409156,1759158658066,-164.838462,0.00024535,7]
[388409158,1759158658076,-1257.337437,0.00024535,7]
[388409160,1759158658084,-164.838462,0.00024535,7]
[388409162,1759158658093,-1257.337437,0.00024535,7]
[388409164,1759158658103,-164.838462,0.00024535,7]
[388409165,1759158658112,-1257.337437,0.00024535,7]
[388409167,1759158658121,-192.47308808,0.00024538,2]
[388409169,1759158658131,-480.0,0.00024595,2]
[388409171,1759158658140,-480.0,0.00024595,2]
[388409173,1759158658150,-480.0,0.00024595,2]
[388409175,1759158658159,-618.01,0.00024595,2]
[388409177,1759158658169,-480.0,0.00024595,2]
[388409179,1759158658178,-1013.97,0.00024595,2]
[388409180,1759158658188,-480.0,0.00024595,2]
[388409182,1759158658198,-1342.73,0.00024595,2]
[388409184,1759158658207,-480.0,0.00024595,2]
[388409186,1759158658218,-2962.42,0.00024595,2]
[388409188,1759158658227,-5544.37,0.00024595,2]
[388409190,1759158658236,-480.0,0.00024595,2]
[388409192,1759158658245,-480.0,0.00024595,2]
[388409194,1759158658254,-657.07,0.00024595,2]
[388409195,1759158658263,-480.0,0.00024595,2]
[388409197,1759158658272,-539.82,0.00024595,2]
[388409199,1759158658282,-5743.03,0.00024595,2]
[388409201,1759158658291,-2111.82,0.00024595,2]
[388409203,1759158658299,-1490.42,0.00024595,2]
[388409205,1759158658308,-480.0,0.00024595,2]
[388409207,1759158658317,-691.8,0.00024595,2]
[388409209,1759158658326,-583.89,0.00024595,2]
[388409210,1759158658335,-1001.62,0.00024595,2]
[388409212,1759158658345,-480.0,0.00024595,2]
[388409214,1759158658354,-564.32,0.00024595,2]
[388409216,1759158658363,-151.0,0.000246,10]
[388409218,1759158658373,-500.0,0.00024608,2]
[388409220,1759158658382,-480.0,0.00024608,2]
[388409222,1759158658391,-483.06,0.00024608,2]
[388409223,1759158658399,-537.43,0.00024608,2]
[388409225,1759158658408,-826.26,0.00024608,2]
[388409227,1759158658418,-480.0,0.00024608,2]
[388409229,1759158658427,-891.2,0.00024608,2]
[388409231,1759158658436,-577.99,0.00024608,2]
[388409233,1759158658445,-657.57,0.00024608,2]
[388409235,1759158658454,-1818.31,0.00024608,2]
[388409236,1759158658463,-1293.0,0.00024608,2]
[388409238,1759158658472,-581.54,0.00024608,2]
[388409240,1759158658481,-480.0,0.00024608,2]
[388409242,1759158658491,-1758.17,0.00024608,2]
[388409244,1759158658499,-493.28,0.00024608,2]
[388409246,1759158658508,-480.0,0.00024608,2]
[388409248,1759158658517,-748.97,0.00024608,2]
[388409250,1759158658526,-1255.43,0.00024608,2]
[388409252,1759158658535,-561.19,0.00024608,2]
[388409253,1759158658544,-480.0,0.00024608,2]
[388409255,1759158658554,-480.0,0.00024608,2]
[388409257,1759158658563,-1088.15,0.00024608,2]
[388409259,1759158658572,-400.0,0.00024608,2]
[388409260,1759158658581,-480.0,0.00024608,2]
[388409262,1759158658589,-854.53,0.00024608,2]
[388409264,1759158658599,-849.71,0.00024608,2]
[388409265,1759158658607,-480.0,0.00024608,2]
[388409266,1759158658616,-1229.08,0.00024608,2]
[388409268,1759158658625,-2724.96,0.00024608,2]
[388409270,1759158658634,-629.84,0.00024608,2]
[388409272,1759158658642,-2122.12,0.00024608,2]
[388409273,1759158658651,-1372.78,0.00024608,2]
[388409275,1759158658660,-480.0,0.00024608,2]
[388409276,1759158658669,-965.97,0.00024608,2]
[388409277,1759158658678,-1709.68,0.00024608,2]
[388409278,1759158658687,-1524.78,0.00024608,2]
[388409279,1759158658697,-192.11414966,0.00024608,2]
[388409280,1759158658706,-6656.2,0.00024608,2]
[388409281,1759158658715,-480.0,0.00024608,2]
[388409282,1759158658724,-3085.4277936,0.00024608,2]
[388409283,1759158658736,-126.3222064,0.00024608,2]
[388409284,1759158658745,-695.5377936,0.00024608,2]
[388409288,1759158658965,-500.0,0.00023772,2]
[388409289,1759158658974,-295.86066346,0.00023772,2]
[388409290,1759158658984,-204.13933654,0.00023772,2]
[388409291,1759158658994,-277.73405067,0.00023772,2]
[388409292,1759158659003,-500.0,0.00023772,2]
[388409293,1759158659012,-231.36757083,0.00023772,2]
[388409294,1759158659021,-17.7122064,0.00024608,2]
[388409295,1759158659030,-499.74,0.00024608,2]
[388409296,1759158659039,-797.02306786,0.00024608,2]
[388409297,1759158659053,-5325.0,0.00024435,7]
[388409315,1759158659662,-500.0,0.00023772,2]
[388409316,1759158659674,-357.12998002,0.00023772,2]
[388409317,1759158659683,-500.0,0.00023772,2]
[388409318,1759158659692,-500.0,0.00023772,2]
[388409319,1759158659701,-500.0,0.00023772,2]
[388409320,1759158659710,-500.0,0.00023772,2]
[388409321,1759158659718,-500.0,0.00023772,2]
[388409322,1759158659727,-480.0,0.00023873,2]
[388409323,1759158659736,-4675.0,0.00024435,7]
[388409324,1759158659745,-10000.0,0.00024435,7]
[388409325,1759158659755,-788.91693214,0.00024608,2]
[388409326,1759158659764,-728.37,0.00024608,2]
[388409327,1759158659773,-7262.35,0.00024608,2]
[388409328,1759158659787,-609.16,0.00024608,2]
[388409329,1759158659797,-1367.3,0.00024608,2]
[388409330,1759158659806,-3836.05,0.00024608,2]
[388409331,1759158659816,-480.0,0.00024608,2]
[388409332,1759158659826,-180.0,0.00024653,2]
[388409333,1759158659835,-151.0,0.00024658,7]
[388409334,1759158659844,-184.26757,0.00024658,7]
[388409335,1759158659853,-184.26757,0.00024658,7]
[388409336,1759158659863,-184.26757,0.00024658,7]
[388409337,1759158659872,-184.26757,0.00024658,7]
[388409338,1759158659881,-151.0,0.00024658,7]
[388409339,1759158659890,-180.0,0.00024661,2]
[388409340,1759158659899,-675.52,0.00024693,2]
[388409341,1759158659908,-480.0,0.00024693,2]
[388409342,1759158659918,-480.0,0.00024693,2]
[388409343,1759158659928,-480.0,0.00024693,2]
[388409344,1759158659937,-480.0,0.00024693,2]
[388409345,1759158659946,-480.0,0.00024693,2]
[388409346,1759158659955,-281.8257968,0.00024693,2]
[388409347,1759158659964,-480.0,0.00024693,2]
[388409348,1759158659973,-648.47,0.00024693,2]
[388409349,1759158659982,-256.346243,0.00024693,7]
[388409350,1759158659991,-151.0,0.00024693,7]
[388409351,1759158660000,-256.346243,0.00024693,7]
[388409352,1759158660010,-256.346243,0.00024693,7]
[388409353,1759158660021,-256.346243,0.00024693,7]
[388409354,1759158660030,-480.0,0.00024693,2]
[388409355,1759158660040,-151.0,0.00024693,7]
[388409356,1759158660049,-151.0,0.00024693,7]
[388409357,1759158660059,-593.749941,0.00024693,7]
[388409358,1759158660069,-593.749941,0.00024693,7]
[388409359,1759158660079,-480.0,0.00024693,2]
[388409360,1759158660088,-593.749941,0.00024693,7]
[388409361,1759158660097,-593.749941,0.00024693,7]
[388409362,1759158660107,-175.613525,0.00024693,7]
[388409363,1759158660116,-175.613525,0.00024693,7]
[388409364,1759158660125,-175.613525,0.00024693,7]
[388409365,1759158660134,-175.613525,0.00024693,7]
[388409366,1759158660143,-1060.61,0.00024693,2]
[388409367,1759158660152,-526.61,0.00024693,2]
[388409368,1759158660161,-296.197878,0.00024693,7]
[388409369,1759158660171,-296.197878,0.00024693,7]
[388409370,1759158660180,-296.197878,0.00024693,7]
[388409371,1759158660190,-296.197878,0.00024693,7]
[388409372,1759158660199,-164.455933,0.00024693,7]
[388409373,1759158660208,-539.87,0.00024693,2]
[388409374,1759158660217,-2634.19,0.00024693,2]
[388409375,1759158660226,-164.455933,0.00024693,7]
[388409376,1759158660236,-164.455933,0.00024693,7]
[388409377,1759158660245,-164.455933,0.00024693,7]
[388409378,1759158660254,-151.0,0.00024693,7]
[388409379,1759158660264,-151.0,0.00024693,7]
[388409380,1759158660273,-209.28187,0.00024693,7]
[388409381,1759158660282,-209.28187,0.00024693,7]
[388409382,1759158660291,-209.28187,0.00024693,7]
[388409383,1759158660300,-209.28187,0.00024693,7]
[388409384,1759158660311,-1370.35,0.00024693,2]
[388409385,1759158660321,-480.0,0.00024693,2]
[388409386,1759158660330,-1486.66,0.00024693,2]
[388409387,1759158660339,-480.0,0.00024693,2]
[388409388,1759158660348,-480.0,0.00024693,2]
[388409389,1759158660357,-687.01,0.00024693,2]
[388409390,1759158660366,-910.22,0.00024693,2]
[388409391,1759158660376,-2774.97,0.00024693,2]
[388409392,1759158660385,-1974.39,0.00024693,2]
[388409393,1759158660394,-671.41,0.00024693,2]
[388409394,1759158660403,-3321.62,0.00024693,2]
[388409395,1759158660413,-957.23,0.00024693,2]
[388409396,1759158660423,-829.4,0.00024693,2]
[388409397,1759158660432,-1203.84,0.00024693,2]
[388409398,1759158660442,-677.69,0.00024693,2]
[388409399,1759158660609,-480.0,0.00024693,2]
[388409400,1759158660626,-581.73,0.00024693,2]
[388409401,1759158660635,-2196.1,0.00024693,2]
[388409402,1759158660645,-1854.65,0.00024693,2]
[388409403,1759158660656,-3030.74,0.00024693,2]
[388409404,1759158660666,-856.09,0.00024693,2]
[388409405,1759158660676,-907.45,0.00024693,2]
[388409406,1759158660685,-480.04056217,0.00024695,2]
[388409407,1759158660698,-233.07943783,0.00024695,2]
[388409408,1759158660708,-480.0,0.00024695,2]
[388409409,1759158660717,-480.0,0.00024695,2]
[388409410,1759158660726,-480.0,0.00024695,2]
[388409411,1759158660736,-708.94,0.00024695,2]
[388409412,1759158660745,-480.0,0.00024695,2]
[388409413,1759158660754,-530.34,0.00024695,2]
[388409414,1759158660763,-480.0,0.00024695,2]
[388409415,1759158660772,-480.0,0.00024695,2]
[388409416,1759158660782,-480.0,0.00024695,2]
[388409417,1759158660795,-480.0,0.00024695,2]
[388409418,1759158660804,-1305.18,0.00024695,2]
[388409419,1759158660813,-480.0,0.00024695,2]
[388409420,1759158660823,-480.0,0.00024695,2]
[388409421,1759158660832,-480.0,0.00024695,2]
[388409422,1759158660841,-729.62,0.00024695,2]
[388409423,1759158660850,-586.29,0.00024695,2]
[388409424,1759158660859,-791.81,0.00024695,2]
[388409425,1759158660871,-589.1,0.00024695,2]
[388409426,1759158660880,-731.28,0.00024695,2]
[388409427,1759158660889,-582.25,0.00024695,2]
[388409428,1759158660898,-480.0,0.00024695,2]
[388409429,1759158660907,-596.18944259,0.00024695,2]
[388409430,1759158660918,-480.0,0.00024695,2]
[388409431,1759158660927,-480.0,0.00024695,2]
[388409432,1759158660936,-480.0,0.00024695,2]
[388409433,1759158660944,-480.0,0.00024695,2]
[388409434,1759158660953,-795.23,0.00024695,2]
[388409435,1759158660962,-480.0,0.00024695,2]
[388409436,1759158660971,-480.0,0.00024695,2]
[388409437,1759158660980,-829.33,0.00024695,2]
[388409438,1759158660989,-480.0,0.00024695,2]
[388409439,1759158660998,-759.72,0.00024695,2]
[388409440,1759158661007,-480.0,0.00024695,2]
[388409441,1759158661016,-480.0,0.00024695,2]
[388409442,1759158661026,-480.0,0.00024695,2]
[388409443,1759158661034,-480.0,0.00024695,2]
[388409444,1759158661043,-480.0,0.00024695,2]
[388409445,1759158661052,-630.99,0.00024695,2]
[388409446,1759158661061,-539.71694254,0.00024695,2]
[388409447,1759158661070,-480.0,0.00024695,2]
[388409448,1759158661080,-782.31,0.00024695,2]
[388409449,1759158661088,-674.99,0.00024695,2]
[388409450,1759158661097,-480.0,0.00024695,2]
[388409451,1759158661107,-679.08,0.00024695,2]
[388409452,1759158661116,-1384.68,0.00024695,2]
[388409453,1759158661125,-619.75,0.00024695,2]
[388409454,1759158661136,-480.0,0.00024695,2]
[388409455,1759158661145,-480.0,0.00024695,2]
[388409456,1759158661154,-729.19,0.00024695,2]
[388409457,1759158661163,-830.21,0.00024695,2]
[388409458,1759158661173,-480.0,0.00024695,2]
[388409459,1759158661183,-515.84,0.00024695,2]
[388409460,1759158661192,-1370.94,0.00024695,2]
[388409461,1759158661201,-480.0,0.00024695,2]
[388409462,1759158661210,-480.0,0.00024695,2]
[388409463,1759158661219,-697.75,0.00024695,2]
[388409464,1759158661228,-565.86,0.00024695,2]
[388409465,1759158661236,-480.0,0.00024695,2]
[388409466,1759158661245,-480.0,0.00024695,2]
[388409467,1759158661255,-480.0,0.00024695,2]
[388409468,1759158661264,-480.0,0.00024695,2]
[388409469,1759158661272,-607.06,0.00024695,2]
[388409470,1759158661282,-480.0,0.00024695,2]
[388409471,1759158661291,-480.0,0.00024695,2]
[388409472,1759158661300,-766.94,0.00024695,2]
[388409473,1759158661309,-495.98,0.00024695,2]
[388409474,1759158661318,-482.16,0.00024695,2]
[388409475,1759158661328,-1020.47,0.00024695,2]
[388409476,1759158661338,-480.0,0.00024695,2]
[388409477,1759158661347,-586.8963914,0.00024695,2]
[388409478,1759158661357,-470.16693423,0.00024695,2]
[388409479,1759158661366,-1329.7,0.00024695,2]
[388409480,1759158661375,-480.0,0.00024695,2]
[388409481,1759158661384,-480.0,0.00024695,2]
[388409482,1759158661394,-480.0,0.00024695,2]
[388409483,1759158661404,-486.45,0.00024695,2]
[388409484,1759158661413,-480.0,0.00024695,2]
[388409485,1759158661423,-754.6,0.00024695,2]